bitfinex/quotes_ETHUSD_20240822
["timestamp","ask_amount","ask_price","bid_price","bid_amount"]
[1724330170437,3.7917,2637.4,2637.1,2.4154]
[1724330170706,3.79143,2637.6,2637.1,2.4154]
[1724330170924,3.0,2637.8,2637.1,2.4154]
[1724330171135,3.59460491,2637.9,2637.1,2.4154]
[1724330171475,3.59460491,2637.9,2637.2,0.07582473]
[1724330171760,3.0,2638.1,2637.4,2.3114]
[1724330172929,3.78984,2638.7,2637.6,2.3269]
[1724330173105,3.78984,2638.7,2637.8,2.3269]
[1724330173495,3.78962,2638.8,2638.0,2.3801]
[1724330173626,3.78924,2639.1,2637.8,2.3801]
[1724330173826,3.78889,2639.3,2638.0,2.3087]
[1724330174054,3.78889,2639.3,2638.2,2.3087]
[1724330174280,3.78865,2639.5,2638.2,2.3087]
[1724330174428,3.78899,2639.3,2638.2,2.3087]
[1724330174652,3.78925,2639.1,2638.2,2.3087]
[1724330174868,3.78925,2639.1,2638.2,2.5634149]
[1724330175368,3.78917,2639.1,2638.2,2.5634149]
[1724330176344,6.78893,2639.3,2638.2,2.5634149]
[1724330176345,3.78893,2639.3,2638.2,2.5634149]
[1724330177030,3.78927,2639.1,2638.2,2.5634149]
[1724330177774,3.78927,2639.1,2638.3,0.25634149]
[1724330177940,7.57791,2639.3,2638.3,0.25634149]
[1724330178148,7.57795,2639.3,2638.0,2.3115]
[1724330178327,3.0,2639.5,2638.0,2.3115]
[1724330178328,6.78862,2639.5,2638.0,2.3115]
[1724330178532,6.78862,2639.5,2638.1,2.3115]
[1724330178731,3.78876,2639.4,2638.2,2.3115]
[1724330178975,6.78862,2639.5,2638.2,2.3115]
[1724330178976,3.78899,2639.3,2638.2,2.3115]
[1724330179279,3.78917,2639.1,2638.2,2.3115]
[1724330179572,3.78891,2639.3,2638.2,2.3115]
[1724330179774,3.0,2639.2,2638.2,2.3115]
[1724330180324,3.0,2639.3,2638.2,2.3115]
[1724330180557,6.78874,2639.4,2638.2,2.3115]
[1724330180828,6.78874,2639.4,2638.4,2.3163]
[1724330181651,3.0,2639.4,2638.4,2.3163]
[1724330181855,3.78836,2639.7,2638.4,2.3163]
[1724330182267,3.78845,2639.6,2638.4,2.3163]
[1724330182500,3.78836,2639.7,2638.6,2.2914]
[1724330182853,4.78809,2639.9,2638.7,0.07577827]
[1724330183053,4.78809,2639.9,2638.3,0.23115]
[1724330183054,4.78809,2639.9,2638.8,2.4857]
[1724330183303,1.0,2639.9,2638.8,2.4857]
[1724330183681,4.78811,2639.9,2638.8,2.4857]
[1724330183902,4.78811,2639.9,2639.0,2.4911]
[1724330183903,3.78816,2639.8,2639.0,2.4911]
[1724330184113,4.78804,2639.9,2639.0,2.4911]
[1724330184717,1.0,2639.9,2639.0,2.4911]
[1724330185017,3.78845,2639.6,2639.0,2.4911]
[1724330185310,3.78854,2639.6,2639.0,2.4911]
[1724330185519,3.78839,2639.7,2639.0,2.4911]
[1724330186292,0.55,2639.8,2639.0,2.4911]
[1724330186507,6.78818,2639.8,2639.0,2.4911]
[1724330186708,3.0,2639.8,2639.0,2.4911]
[1724330186880,1.0,2639.9,2639.1,2.74561]
[1724330187091,3.78839,2639.7,2639.1,2.74561]
[1724330187405,1.0,2639.9,2639.1,2.74561]
[1724330188704,4.7881,2639.9,2639.1,2.74561]
[1724330188892,3.7884,2639.7,2639.1,2.4965]
[1724330189067,3.78863,2639.5,2639.1,2.4965]
[1724330189720,8.18215464,2639.9,2639.1,2.4965]
[1724330189866,4.7881,2639.9,2639.1,2.4965]
[1724330190072,3.7886,2639.5,2639.1,2.4965]
[1724330190675,7.57729,2639.5,2639.1,2.4965]
[1724330190872,3.78902,2639.2,2638.8,2.3845]
[1724330191073,3.78945,2638.9,2638.4,2.3845]
[1724330191277,3.0,2639.4,2638.4,2.3845]
[1724330191278,6.228,2639.2,2638.4,2.3845]
[1724330191511,6.228,2639.2,2636.8,6.928]
[1724330191512,3.79003,2638.5,2637.8,2.3845]
[1724330192016,3.78978,2638.7,2637.8,2.3845]
[1724330192218,3.0,2638.6,2637.8,2.3845]
[1724330192430,3.0,2638.8,2637.8,2.3845]
[1724330192577,3.78921,2639.1,2637.9,2.64697715]
[1724330192578,3.0,2639.0,2637.9,2.64697715]
[1724330193124,6.78895,2639.3,2638.0,2.2971]
[1724330193432,3.0,2639.2,2638.0,2.2971]
[1724330193627,3.0,2639.2,2638.1,2.2971]
[1724330193828,8.57621,2639.9,2638.5,2.4647]
[1724330194031,3.7886,2639.5,2638.7,2.4647]
[1724330194177,1.39389684,2639.9,2638.7,2.4647]
[1724330194377,3.78894,2639.3,2638.7,2.4647]
[1724330194596,3.78868,2639.5,2638.7,2.4647]
[1724330194987,3.78874,2639.4,2638.7,2.4647]
[1724330195191,3.78868,2639.5,2638.7,2.4647]
[1724330195626,3.78834,2639.7,2638.8,2.4008]
[1724330195983,3.78871,2639.5,2638.8,2.4008]
[1724330196141,3.78897,2639.3,2638.8,2.4008]
[1724330196724,3.78907,2639.2,2638.4,2.3583]
[1724330197206,6.7888,2639.4,2638.4,2.3583]
[1724330197406,3.78956,2638.9,2638.4,2.3583]
[1724330197609,0.55,2639.3,2638.4,2.3583]
[1724330198744,3.78958,2638.9,2638.4,2.3583]
[1724330198943,3.78944,2639.0,2638.4,2.3583]
[1724330199126,3.0,2638.9,2638.4,2.3583]
[1724330200057,3.0,2639.1,2638.4,2.3583]
[1724330200939,6.78917,2639.1,2638.4,2.3583]
[1724330201273,3.0,2639.1,2638.4,2.3583]
[1724330201422,3.0,2639.1,2638.4,2.59413]
[1724330201627,3.0,2639.2,2638.4,2.59413]
[1724330201973,7.31,2639.3,2638.4,2.59413]
[1724330202318,7.31,2639.3,2638.5,2.4126]
[1724330202525,7.31,2639.3,2638.7,2.4126]
[1724330203753,1.0,2639.9,2638.7,2.4126]
[1724330203939,4.0,2639.9,2638.8,2.3733]
[1724330204135,7.78813,2639.9,2638.8,2.3733]
[1724330205035,4.0,2639.9,2638.8,2.3733]
[1724330205238,4.0,2639.9,2638.6,4.677503]
[1724330205239,4.0,2639.9,2639.0,2.4649]
[1724330205574,7.78803,2639.9,2639.0,2.4649]
[1724330205873,4.0,2639.9,2639.0,2.4649]
[1724330206019,3.78816,2639.8,2639.0,2.4649]
[1724330206224,3.78837,2639.7,2639.0,2.4649]
[1724330206490,3.78816,2639.8,2639.0,2.71139]
[1724330206624,3.78839,2639.7,2639.0,2.71139]
[1724330206826,3.78816,2639.8,2639.0,2.71139]
[1724330207241,3.78831,2639.7,2639.0,2.71139]
[1724330207657,3.78816,2639.8,2639.0,2.71139]
[1724330209765,4.0,2639.9,2639.0,2.71139]
[1724330210167,1.0,2639.9,2639.0,2.71139]
[1724330210372,1.0,2639.9,2639.1,2.56216469]
[1724330210550,1.0,2639.9,2639.1,2.4864]
[1724330211536,3.78845,2639.6,2639.1,2.4864]
[1724330211740,0.35398186,2639.8,2639.1,2.4864]
[1724330211741,3.78829,2639.8,2639.1,2.4864]
[1724330211955,3.78835,2639.7,2639.1,2.4864]
[1724330212165,3.78829,2639.8,2638.0,0.7]
[1724330212166,6.228,2639.5,2638.0,2.2823]
[1724330212383,3.78985,2638.7,2638.0,2.2823]
[1724330212845,10.65807244,2639.2,2638.0,2.2823]
[1724330212846,3.78931,2639.0,2638.0,2.2823]
[1724330213034,0.35382403,2638.9,2638.0,2.2823]
[1724330213229,0.35382403,2638.8,2638.0,2.2823]
[1724330213434,0.35382403,2638.7,2638.1,0.25447772]
[1724330213681,3.78946,2638.9,2638.1,0.25447772]
[1724330214183,0.35380637,2638.8,2638.1,0.25447772]
[1724330214383,0.35380637,2638.7,2638.1,0.25447772]
[1724330214681,0.56606299,2638.8,2638.2,2.3814]
[1724330214850,3.0,2639.0,2638.3,0.26358777]
[1724330215052,0.35382922,2638.9,2638.3,0.26358777]
[1724330215274,0.35382922,2638.8,2638.3,0.26358777]
[1724330215469,0.35382922,2638.7,2638.3,0.26358777]
[1724330215672,8.34929244,2639.0,2638.3,0.26358777]
[1724330215884,0.91992787,2638.9,2638.3,0.26358777]
[1724330216184,0.91992653,2638.8,2638.3,0.26358777]
[1724330216485,0.35381841,2638.7,2638.3,0.26358777]
[1724330216685,4.55997244,2639.0,2638.3,0.26358777]
[1724330216855,0.91994756,2638.9,2638.3,0.26358777]
[1724330217050,0.91994144,2638.8,2638.3,0.26358777]
[1724330217454,1.55997244,2638.9,2638.4,2.2822]
[1724330217669,0.35381792,2638.7,2638.4,2.2822]
[1724330217998,2.12606808,2638.7,2638.4,2.2822]
[1724330218140,0.91991849,2638.6,2638.4,2.2822]
[1724330218568,0.35381792,2638.5,2638.4,2.2822]
[1724330218924,0.91991025,2638.5,2638.4,2.2822]
[1724330219081,2.49825394,2638.5,2638.4,2.2822]
[1724330219421,2.49825394,2638.5,2638.1,2.4521]
[1724330219422,2.88901825,2638.5,2638.1,2.4521]
[1724330219622,1.93203503,2638.4,2638.1,2.69731]
[1724330219790,0.35381792,2638.3,2638.1,2.69731]
[1724330220123,1.57821711,2638.5,2638.1,2.69731]
[1724330220573,0.35364278,2638.4,2638.1,2.69731]
[1724330220924,0.35364278,2638.3,2638.1,2.69731]
[1724330221080,0.35364278,2638.2,2638.1,2.69731]
[1724330221277,0.35364278,2638.3,2638.1,2.69731]
[1724330221482,0.3536934,2638.2,2638.1,2.4521]
[1724330222213,1.57821711,2638.4,2638.1,2.4521]
[1724330222530,1.93183898,2638.3,2638.1,2.4521]
[1724330222824,0.35362187,2638.2,2638.1,2.4521]
[1724330223029,1.97214746,2638.4,2638.1,2.4521]
[1724330223030,1.57821711,2638.4,2638.1,2.4521]
[1724330223227,0.35365092,2638.3,2638.1,2.69731]
[1724330223412,1.57821711,2638.4,2638.1,2.69731]
[1724330224625,1.93185134,2638.3,2638.1,2.69731]
[1724330224793,1.57821711,2638.3,2638.1,2.4521]
[1724330224995,1.93185567,2638.2,2638.1,2.4521]
[1724330226309,2.8910787,2638.2,2637.4,2.4082]
[1724330226509,2.36605825,2638.4,2637.4,2.4082]
[1724330226510,1.57653419,2638.0,2637.4,2.4082]
[1724330226733,1.57653419,2638.0,2637.5,0.24082]
[1724330227779,1.57653419,2638.1,2637.5,0.24082]
[1724330227983,1.57653419,2638.1,2637.6,2.3593]
[1724330228210,1.57653419,2638.2,2637.6,2.3593]
[1724330228388,1.57653419,2638.2,2637.7,0.260012]
[1724330230798,1.57653419,2638.3,2637.8,2.3576]
[1724330231005,1.57653419,2638.5,2637.8,2.3576]
[1724330231216,0.35349846,2638.4,2637.9,0.2617612]
[1724330231417,1.57653419,2638.5,2637.9,0.2617612]
[1724330231716,1.57653419,2638.5,2638.0,2.3576]
[1724330231904,1.57653419,2638.5,2638.1,0.07579941]
[1724330232103,1.57653419,2638.6,2638.1,0.07579941]
[1724330232316,1.57653419,2638.6,2638.1,0.26951606]
[1724330232698,0.35346471,2638.5,2638.1,0.26951606]
[1724330232899,1.57653419,2638.6,2638.1,0.26951606]
[1724330233248,1.57653419,2638.6,2638.2,2.3958]
[1724330233587,1.57653419,2638.6,2638.3,0.3423265]
[1724330234254,1.57653419,2638.6,2638.3,0.26653161]
[1724330234598,1.57653419,2638.6,2638.4,0.07579378]
[1724330234800,2.75759504,2639.2,2638.5,2.3081]
[1724330234801,1.57653419,2638.8,2638.5,2.3081]
[1724330236059,1.96971074,2639.0,2638.5,2.3081]
[1724330236060,1.57653419,2638.9,2638.5,2.3081]
[1724330236227,1.93003682,2638.8,2638.5,2.56556316]
[1724330236433,1.57653419,2638.8,2638.5,2.56556316]
[1724330237021,1.93009832,2638.7,2638.5,2.56556316]
[1724330237222,1.57653419,2638.7,2638.5,2.56556316]
[1724330237642,1.57653419,2638.8,2638.5,2.56556316]
[1724330238383,1.57653419,2638.8,2638.6,0.25655632]
[1724330238751,1.57653419,2638.8,2638.6,0.33234632]
[1724330239290,1.57653419,2638.8,2638.6,0.25655632]
[1724330239853,1.57653419,2638.8,2638.6,0.33234641]
[1724330240062,1.57653419,2638.8,2638.5,2.3081]
[1724330240063,0.35352821,2638.7,2638.5,2.3081]
[1724330240272,1.57653419,2638.8,2638.5,2.3081]
[1724330241137,1.57653419,2638.8,2638.6,0.07579002]
[1724330242888,3.79006,2638.5,2637.8,2.4248]
[1724330243091,1.57625376,2638.2,2637.8,2.4248]
[1724330243296,5.72048664,2638.1,2637.0,2.4248]
[1724330243499,1.57625376,2637.9,2637.0,2.4248]
[1724330243798,1.57625376,2637.7,2637.0,2.4248]
[1724330244087,0.35353288,2637.8,2637.1,0.24248]
[1724330244088,1.57625376,2637.8,2637.1,0.24248]
[1724330244395,1.92969468,2637.7,2637.1,0.24248]
[1724330244599,1.9703172,2637.9,2637.0,2.4248]
[1724330244600,1.57625376,2637.6,2637.0,2.4248]
[1724330244943,3.7909,2637.9,2636.6,2.4022]
[1724330244944,1.57625376,2637.3,2636.6,2.4022]
[1724330245218,1.92967375,2637.2,2636.6,2.4022]
[1724330245425,1.92967375,2637.1,2636.6,2.4022]
[1724330245715,1.57625376,2637.2,2636.6,2.4022]
[1724330245883,1.57625376,2637.1,2636.6,2.4022]
[1724330246076,1.57625376,2637.1,2636.6,2.64242]
[1724330246283,1.57625376,2637.2,2636.6,2.64242]
[1724330246607,1.57625376,2637.3,2636.6,2.64242]
[1724330246811,1.57625376,2637.3,2635.9,10.00264]
[1724330246812,1.57625376,2637.1,2635.9,6.209]
[1724330247022,5.72191221,2637.0,2636.0,2.3139]
[1724330247183,3.79249,2636.8,2636.0,2.3139]
[1724330247608,5.36874376,2636.8,2636.0,2.3139]
[1724330247768,3.79277,2636.6,2636.0,2.3139]
[1724330247967,2.12625376,2636.7,2635.2,2.3139]
[1724330247968,3.79291,2636.5,2635.2,2.3139]
[1724330248218,0.55,2636.4,2635.2,2.3139]
[1724330249181,3.79332,2636.3,2635.2,2.3139]
[1724330249380,9.717,2636.4,2635.2,2.3139]
[1724330249611,0.55,2636.3,2635.3,0.27475944]
[1724330250994,3.7934,2636.2,2635.3,0.27475944]
[1724330251204,3.79348,2636.1,2635.3,0.27475944]
[1724330251519,3.79337,2636.2,2635.3,0.27475944]
[1724330251667,3.79379,2635.9,2634.6,2.3021]
[1724330251872,0.55,2635.8,2634.6,2.3021]
[1724330252421,3.79406,2635.7,2634.6,2.3021]
[1724330252628,3.79406,2635.7,2634.7,0.23021]
[1724330252805,3.79479,2635.2,2634.2,2.3408]
[1724330253004,2.4312,2635.6,2634.2,2.3408]
[1724330253005,3.79475,2635.3,2634.2,2.3408]
[1724330253185,0.55,2635.1,2634.2,2.3408]
[1724330253600,3.79475,2635.3,2634.2,2.3408]
[1724330253601,0.55,2635.2,2634.2,2.3408]
[1724330254228,6.79409,2635.7,2634.2,2.3408]
[1724330254375,6.79409,2635.7,2634.6,2.434]
[1724330254376,4.34431,2635.6,2634.6,2.434]
[1724330254577,3.0,2635.5,2634.6,2.434]
[1724330254778,6.79436,2635.5,2634.6,2.434]
[1724330255088,4.34458,2635.4,2634.6,2.6774]
[1724330255294,0.55,2635.4,2634.6,2.6774]
[1724330256933,6.79408,2635.7,2634.6,2.6774]
[1724330257140,0.55,2635.6,2634.6,2.6774]
[1724330257438,0.55,2635.6,2634.7,0.26774]
[1724330258498,10.31,2635.7,2634.7,0.26774]
[1724330258681,7.31,2635.7,2634.8,2.4727]
[1724330258888,7.58739,2636.0,2634.8,2.4727]
[1724330259083,6.79379,2635.9,2634.8,2.4727]
[1724330259330,6.79379,2635.9,2634.9,0.653585]
[1724330259481,3.0,2635.9,2634.9,0.653585]
[1724330259889,0.55,2635.8,2634.9,0.653585]
[1724330260094,0.55,2635.8,2634.8,2.4727]
[1724330260296,3.0,2636.0,2634.8,2.4727]
[1724330260297,0.55,2635.9,2634.8,2.4727]
[1724330260543,3.79444,2635.5,2634.8,2.4727]
[1724330260725,7.58828,2635.7,2634.8,2.4727]
[1724330261043,0.55,2635.6,2634.8,2.4727]
[1724330261339,0.55,2635.6,2634.8,2.746744]
[1724330261496,4.34425,2635.6,2634.8,2.746744]
[1724330261692,4.34425,2635.6,2634.8,2.4727]
[1724330261897,3.79437,2635.5,2634.8,2.4727]
[1724330262637,0.55,2635.6,2634.8,2.4727]
[1724330263891,3.7938,2635.9,2634.8,2.4727]
[1724330264137,7.31,2636.2,2634.8,2.4727]
[1724330264138,3.0,2635.8,2634.8,2.4727]
[1724330264339,3.0,2636.1,2634.9,0.626817]
[1724330264640,3.79394,2635.8,2634.9,0.626817]
[1724330264943,3.7939,2635.9,2634.8,2.4727]
[1724330265109,3.79436,2635.5,2634.8,2.4727]
[1724330265750,3.79449,2635.4,2634.8,2.4727]
[1724330265950,3.79436,2635.5,2634.8,2.4727]
[1724330266142,7.58881,2635.5,2634.8,2.4727]
[1724330266312,3.79436,2635.5,2634.8,2.4727]
[1724330267253,3.79452,2635.4,2634.8,2.4727]
[1724330267760,5.3368,2635.8,2634.4,3.0]
[1724330267761,3.79478,2635.2,2634.4,2.4368]
[1724330268062,3.79461,2635.4,2634.4,2.4368]
[1724330268366,7.59092,2634.8,2633.6,2.3295]
[1724330268677,3.79543,2634.8,2633.6,2.3295]
[1724330268814,3.79566,2634.6,2633.6,2.3295]
[1724330269011,7.5914,2634.6,2633.7,0.23295]
[1724330269370,3.79586,2634.5,2633.7,0.23295]
[1724330269543,4.34561,2634.7,2633.7,0.23295]
[1724330269744,3.79564,2634.6,2633.7,0.23295]
[1724330269949,0.55,2634.5,2633.7,0.23295]
[1724330270459,0.55,2634.5,2633.6,2.3295]
[1724330270460,3.79637,2634.1,2633.6,2.3295]
[1724330270610,3.79613,2634.3,2633.6,2.3295]
[1724330270929,3.55,2634.2,2633.6,2.3295]
[1724330272420,3.55,2634.2,2632.6,6.209]
[1724330272421,3.79653,2634.0,2632.6,2.4578]
[1724330272620,4.34626,2634.2,2632.3,14.2292452]
[1724330272621,3.79665,2633.9,2632.7,2.70358]
[1724330272759,0.55,2633.8,2632.7,2.70358]
[1724330273557,4.34653,2634.0,2632.7,2.70358]
[1724330273801,3.79668,2633.9,2632.8,0.65021]
[1724330274006,0.55,2633.8,2632.7,2.70358]
[1724330274358,3.0,2634.1,2632.9,2.3469]
[1724330274563,3.79593,2634.4,2633.2,2.3469]
[1724330274820,3.79609,2634.3,2633.2,2.3469]
[1724330275041,3.79623,2634.2,2633.2,2.3469]
[1724330275260,3.7966,2634.0,2633.2,2.3469]
[1724330275544,0.55,2633.9,2633.2,2.3469]
[1724330275895,0.55,2634.0,2633.2,2.3469]
[1724330276091,4.34636,2634.1,2633.2,2.3469]
[1724330276330,0.55,2634.1,2633.3,0.23469]
[1724330276494,3.79609,2634.3,2633.3,0.23469]
[1724330276495,0.55,2634.2,2633.3,0.23469]
[1724330276887,3.79617,2634.3,2633.3,0.23469]
[1724330277144,4.34623,2634.2,2633.3,0.23469]
[1724330277698,4.34623,2634.2,2633.2,2.3469]
[1724330277699,0.55,2634.2,2633.2,2.3469]
[1724330277900,6.79585,2634.5,2633.2,2.3469]
[1724330278136,3.79595,2634.4,2633.2,2.4649]
[1724330278288,3.0,2634.5,2633.2,2.4649]
[1724330278490,3.79625,2634.2,2633.3,0.24649]
[1724330278811,3.79652,2634.0,2633.3,0.24649]
[1724330279025,3.79625,2634.2,2633.3,0.24649]
[1724330279206,4.09599,2634.4,2633.4,2.4649]
[1724330279413,4.34609,2634.3,2633.4,2.4649]
[1724330279594,4.34609,2634.3,2633.4,2.736039]
[1724330279595,0.55,2634.3,2633.4,2.736039]
[1724330279795,4.3461,2634.3,2633.4,2.4649]
[1724330280634,3.79661,2634.0,2633.4,2.4649]
[1724330280897,3.0,2634.2,2633.4,2.4649]
[1724330281262,3.55,2634.3,2633.4,2.4649]
[1724330281544,3.55,2634.3,2633.5,0.07593619]
[1724330281744,3.0,2634.5,2633.6,2.56693012]
[1724330281915,3.0,2634.7,2633.6,2.56693012]
[1724330282117,3.0,2634.7,2633.6,2.491]
[1724330282314,10.7451,2635.0,2633.6,2.491]
[1724330282538,10.7451,2635.0,2633.8,2.491]
[1724330282716,3.79541,2634.8,2633.8,2.491]
[1724330283435,10.7451,2635.0,2633.9,2.42792005]
[1724330283436,3.7951,2635.0,2633.9,2.42792005]
[1724330283770,3.79528,2634.9,2633.9,2.352]
[1724330283938,3.7951,2635.0,2633.9,2.352]
[1724330284124,3.7951,2635.0,2634.0,0.2352]
[1724330284328,3.79544,2634.8,2634.0,0.2352]
[1724330285122,3.79509,2635.0,2634.0,0.2352]
[1724330285377,0.55,2634.9,2634.0,0.2352]
[1724330285541,3.79537,2634.8,2634.0,0.2352]
[1724330285874,3.7959,2634.5,2633.9,2.352]
[1724330286069,3.79558,2634.7,2633.9,2.352]
[1724330286219,4.34523,2634.9,2633.9,2.352]
[1724330286419,3.0,2634.8,2633.9,2.352]
[1724330286621,3.0,2634.8,2634.0,2.45722052]
[1724330286839,7.31,2635.0,2634.1,0.3216374]
[1724330287020,7.31,2635.0,2634.2,2.3813]
[1724330288171,11.10507,2635.0,2634.2,2.3813]
[1724330289890,7.31,2635.0,2634.2,2.3813]
[1724330290260,7.31,2635.0,2634.3,0.07590855]
[1724330290440,7.31,2635.0,2634.4,2.4782]
[1724330290779,7.31,2635.0,2634.4,2.72602]
[1724330291298,19.08466,2635.3,2634.5,2.4782]
[1724330291299,15.29,2635.3,2634.5,2.4782]
[1724330291458,12.29,2635.3,2634.5,2.4782]
[1724330291658,3.79491,2635.2,2634.5,2.4782]
[1724330292080,12.29,2635.3,2634.5,2.4782]
[1724330292390,12.29,2635.3,2634.5,2.750802]
[1724330292607,12.29,2635.3,2634.5,2.4782]
[1724330292904,3.79486,2635.2,2634.5,2.4782]
[1724330293263,7.58975,2635.2,2634.5,2.4782]
[1724330293461,3.79486,2635.2,2634.5,2.4782]
[1724330293703,12.29,2635.3,2634.5,2.4782]
[1724330293843,3.79542,2634.8,2634.5,2.4782]
[1724330294191,3.7955,2634.7,2633.8,2.2744]
[1724330294345,7.5911,2634.7,2633.8,2.2744]
[1724330294546,3.7955,2634.7,2633.8,2.2744]
[1724330294988,3.79526,2634.9,2633.8,2.2744]
[1724330295157,3.79526,2634.9,2633.7,7.45]
[1724330295158,3.79526,2634.9,2634.0,2.2744]
[1724330295491,0.35327071,2634.8,2634.0,2.2744]
[1724330295696,3.79501,2635.1,2634.0,2.2744]
[1724330295853,7.69840226,2635.0,2634.0,2.2744]
[1724330296048,7.34513,2635.0,2634.0,2.2744]
[1724330296255,0.35327434,2634.9,2634.1,0.324684]
[1724330296507,0.35327434,2634.9,2634.2,2.2577]
[1724330296666,3.55,2635.0,2634.2,2.2577]
[1724330296667,0.35327434,2634.8,2634.2,2.2577]
[1724330296862,3.0,2635.0,2634.2,2.2577]
[1724330297165,0.35324685,2634.9,2634.2,2.2577]
[1724330297497,0.91827002,2634.9,2634.2,2.2577]
[1724330297653,0.35324685,2634.8,2634.2,2.2577]
[1724330297855,0.35324685,2634.7,2634.2,2.2577]
[1724330298147,8.37141376,2635.0,2634.2,2.2577]
[1724330298351,4.71338319,2634.9,2634.2,2.2577]
[1724330298591,0.35314353,2634.8,2634.2,2.2577]
[1724330298803,4.14867353,2634.7,2634.2,2.2577]
[1724330298998,0.35314353,2634.6,2634.2,2.2577]
[1724330299203,0.35314353,2634.5,2634.2,2.2577]
[1724330299503,0.35311862,2634.4,2634.2,2.2577]
[1724330299699,5.37197376,2634.6,2634.2,2.2577]
[1724330299998,0.35311363,2634.5,2634.2,2.2577]
[1724330300147,0.35311363,2634.4,2634.2,2.2577]
[1724330300347,1.57625376,2634.6,2634.2,2.2577]
[1724330300591,0.35311346,2634.5,2634.2,2.2577]
[1724330300892,0.35311346,2634.4,2634.2,2.2577]
[1724330301048,5.37196376,2634.6,2634.2,2.2577]
[1724330301249,0.3531109,2634.5,2634.2,2.2577]
[1724330301475,0.3531109,2634.4,2634.2,2.2577]
[1724330301650,9.16770376,2634.6,2634.2,2.2577]
[1724330301980,5.37219376,2634.4,2633.3,2.4165]
[1724330302175,5.37219376,2634.4,2633.3,2.65815]
[1724330302176,1.57625376,2634.2,2633.3,2.65815]
[1724330302383,7.59316,2634.0,2633.3,2.4165]
[1724330302551,4.34665,2633.9,2633.3,2.4165]
[1724330302893,4.14983424,2633.8,2633.3,2.4165]
[1724330303196,5.37305376,2633.8,2633.3,2.4165]
[1724330303563,4.15003632,2633.7,2633.3,2.4165]
[1724330303769,1.57625376,2633.7,2633.3,2.4165]
[1724330303971,4.57625376,2633.8,2633.3,2.4165]
[1724330304163,1.92926449,2633.7,2633.3,2.4165]
[1724330304500,0.90300032,2633.6,2632.4,2.3331]
[1724330304651,11.10732,2633.5,2632.4,2.3331]
[1724330305662,12.68357376,2633.5,2632.4,2.3331]
[1724330305864,11.10732,2633.5,2632.4,2.3331]
[1724330306088,12.68357376,2633.5,2632.5,1.03533452]
[1724330306441,1.57625376,2633.4,2632.6,2.3296]
[1724330306710,12.68357376,2633.5,2632.6,2.3296]
[1724330306894,12.68357376,2633.5,2632.7,0.33649345]
[1724330307089,8.88625376,2633.5,2632.7,0.33649345]
[1724330307407,7.31,2633.5,2632.6,2.3296]
[1724330308267,7.31,2633.5,2632.8,2.2887]
[1724330308470,7.31,2633.5,2632.9,2.2887]
[1724330309130,1.57625376,2633.7,2632.9,2.2887]
[1724330309316,0.35307088,2633.6,2632.9,2.2887]
[1724330309520,1.57625376,2633.7,2632.9,2.2887]
[1724330310815,12.29,2633.8,2632.9,2.2887]
[1724330310816,12.29,2633.8,2633.1,2.4478]
[1724330311048,1.57625376,2634.0,2633.3,2.4478]
[1724330311186,1.57625376,2634.1,2633.4,0.32830971]
[1724330311534,1.92937873,2634.0,2633.4,0.32830971]
[1724330312030,1.57625376,2634.0,2633.4,0.32830971]
[1724330312774,1.57625376,2634.0,2632.6,6.79846]
[1724330312775,5.37313376,2633.8,2632.6,3.0]
[1724330312957,5.37313376,2633.8,2632.7,2.2736]
[1724330312958,1.92939498,2633.7,2632.7,2.2736]
[1724330313131,4.34711,2633.6,2632.7,2.2736]
[1724330313295,4.34711,2633.6,2632.5,8.48533452]
[1724330313296,1.57625376,2633.5,2632.6,1.22840145]
[1724330313496,1.57625376,2633.5,2632.5,0.16094552]
[1724330313497,5.37371376,2633.4,2632.5,0.16094552]
[1724330314054,0.35306083,2633.3,2632.5,0.16094552]
[1724330314208,1.57625376,2633.4,2632.5,0.16094552]
[1724330314803,5.76303313,2633.5,2632.5,0.16094552]
[1724330314804,1.57625376,2633.5,2632.5,0.16094552]
[1724330315006,1.57625376,2633.5,2632.5,3.95951552]
[1724330315230,1.57625376,2633.5,2632.6,0.77582855]
[1724330316096,4.57625376,2633.6,2632.6,0.77582855]
[1724330316390,1.57625376,2633.5,2632.7,2.4955]
[1724330316648,4.57625376,2633.6,2632.7,2.4955]
[1724330317701,1.92936119,2633.5,2632.7,2.4955]
[1724330317906,0.68947,2633.4,2632.7,2.4955]
[1724330318442,2.26572376,2633.4,2632.7,2.4955]
[1724330318605,0.68947,2633.4,2632.7,2.4955]
[1724330318806,1.57625376,2633.5,2632.7,2.4955]
[1724330319063,4.57625376,2633.6,2632.7,2.4955]
[1724330319552,1.57625376,2633.5,2632.7,2.4955]
[1724330319926,8.88625376,2633.7,2632.7,2.4955]
[1724330320270,8.88625376,2633.7,2632.9,2.4324]
[1724330320782,7.31,2633.7,2632.9,2.4324]
[1724330321054,12.68321376,2633.7,2632.9,2.4324]
[1724330321261,8.88625376,2633.7,2632.9,2.4324]
[1724330321459,7.31,2633.7,2632.9,2.4324]
[1724330321657,7.31,2633.7,2632.6,3.0]
[1724330321658,7.31,2633.7,2633.1,2.381]
[1724330323715,9.7964,2633.7,2632.7,2.2814]
[1724330323945,8.88625376,2633.7,2632.7,2.2814]
[1724330324112,12.68328376,2633.7,2632.7,2.2814]
[1724330324549,5.37340376,2633.6,2632.7,2.2814]
[1724330325262,3.79724,2633.5,2632.7,2.2814]
[1724330325473,1.57625376,2633.6,2632.7,2.2814]
[1724330325641,7.31,2633.7,2632.8,2.2826]
[1724330326565,7.31,2633.7,2632.9,2.3202]